[Event "Titled Tuesday Blitz April 26 Late 2022"]
[White "Melikhov, Evgeny V."]
[Black "Zlatin, Alexander"]
[WhiteFideId "4122046"]
[BlackFideId "2810549"]
[WhiteElo "1931"]
[BlackElo "2228"]
[Result "0-1"]
[Round "09"]
[TimeControl "180+1"]
[Date "2022.04.26"]
[WhiteClock "0:00:06"]
[BlackClock "0:00:07"]

1. d4 {[%clk 0:03:00]}  d5 {[%clk 0:02:59]} 2. c4 {[%clk 0:03:00]}  e6 {[%clk 0:02:59]} 3. Nc3 {[%clk 0:03:00]}  c5 {[%clk 0:02:59]} 4. cxd5 {[%clk 0:03:00]}  cxd4 {[%clk 0:02:58]} 5. Qa4+ {[%clk 0:03:00]}  Bd7 {[%clk 0:02:58]} 6. Qxd4 {[%clk 0:03:00]}  exd5 {[%clk 0:02:59]} 7. Qxd5 {[%clk 0:03:00]}  Nc6 {[%clk 0:03:00]} 8. Nf3 {[%clk 0:02:59]}  Nf6 {[%clk 0:03:00]} 9. Qd1 {[%clk 0:02:58]}  Bc5 {[%clk 0:03:01]} 10. e3 {[%clk 0:02:58]}  Qe7 {[%clk 0:03:01]} 11. Be2 {[%clk 0:02:58]}  O-O-O {[%clk 0:03:02]} 12. O-O {[%clk 0:02:56]}  g5 {[%clk 0:03:02]} 13. Qc2 {[%clk 0:02:50]}  g4 {[%clk 0:03:02]} 14. Nd4 {[%clk 0:02:50]}  Kb8 {[%clk 0:02:58]} 15. Ncb5 {[%clk 0:02:39]}  a6 {[%clk 0:02:50]} 16. Nxc6+ {[%clk 0:02:38]}  Bxc6 {[%clk 0:02:48]} 17. Nd4 {[%clk 0:02:38]}  Bxd4 {[%clk 0:02:40]} 18. exd4 {[%clk 0:02:38]}  Rxd4 {[%clk 0:02:29]} 19. Be3 {[%clk 0:02:37]}  Rd5 {[%clk 0:02:20]} 20. Rad1 {[%clk 0:02:27]}  h5 {[%clk 0:02:15]} 21. Rxd5 {[%clk 0:02:19]}  Nxd5 {[%clk 0:02:13]} 22. Qc5 {[%clk 0:02:09]}  Qxc5 {[%clk 0:02:08]} 23. Bxc5 {[%clk 0:02:09]}  Rh6 {[%clk 0:01:51]} 24. Rd1 {[%clk 0:02:03]}  b6 {[%clk 0:01:21]} 25. Bf8 {[%clk 0:01:47]}  Re6 {[%clk 0:01:00]} 26. Bxa6 {[%clk 0:01:32]}  Kc7 {[%clk 0:00:41]} 27. Bc4 {[%clk 0:01:17]}  Re8 {[%clk 0:00:39]} 28. Bg7 {[%clk 0:01:13]}  Nf4 {[%clk 0:00:36]} 29. Bf1 {[%clk 0:01:08]}  h4 {[%clk 0:00:30]} 30. Rd4 {[%clk 0:00:53]}  Ne2+ {[%clk 0:00:28]} 31. Bxe2 {[%clk 0:00:52]}  Rxe2 {[%clk 0:00:29]} 32. Rd1 {[%clk 0:00:49]}  h3 {[%clk 0:00:26]} 33. gxh3 {[%clk 0:00:48]}  gxh3 {[%clk 0:00:27]} 34. Kf1 {[%clk 0:00:46]}  Bb5 {[%clk 0:00:20]} 35. Kg1 {[%clk 0:00:30]}  Re6 {[%clk 0:00:20]} 36. f3 {[%clk 0:00:14]}  Rg6+ {[%clk 0:00:19]} 37. Kf2 {[%clk 0:00:14]}  Rxg7 {[%clk 0:00:18]} 38. Rd5 {[%clk 0:00:14]}  Bc6 {[%clk 0:00:17]} 39. Rh5 {[%clk 0:00:13]}  Rg2+ {[%clk 0:00:17]} 40. Ke3 {[%clk 0:00:14]}  Rxh2 {[%clk 0:00:18]} 41. b4 {[%clk 0:00:13]}  Rh1 {[%clk 0:00:18]} 42. b5 {[%clk 0:00:13]}  Bd7 {[%clk 0:00:17]} 43. Rh7 {[%clk 0:00:12]}  Be6 {[%clk 0:00:18]} 44. f4 {[%clk 0:00:12]}  Rf1 {[%clk 0:00:17]} 45. a4 {[%clk 0:00:11]}  Ra1 {[%clk 0:00:17]} 46. f5 {[%clk 0:00:10]}  Ra3+ {[%clk 0:00:17]} 47. Kf4 {[%clk 0:00:10]}  Rxa4+ {[%clk 0:00:16]} 48. Ke5 {[%clk 0:00:10]}  Bc4 {[%clk 0:00:10]} 49. Rxh3 {[%clk 0:00:10]}  Ra2 {[%clk 0:00:09]} 50. Rh7 {[%clk 0:00:10]}  Re2+ {[%clk 0:00:08]} 51. Kf6 {[%clk 0:00:10]}  Kd6 {[%clk 0:00:07]} 52. Rh8 {[%clk 0:00:10]}  Bd5 {[%clk 0:00:07]} 53. Rd8+ {[%clk 0:00:09]}  Kc5 {[%clk 0:00:07]} 54. Rd7 {[%clk 0:00:08]}  Re3 {[%clk 0:00:07]} 55. Rc7+ {[%clk 0:00:07]}  Kxb5 {[%clk 0:00:07]} 56. Rd7 {[%clk 0:00:07]}  Bc4 {[%clk 0:00:07]} 57. Kg7 {[%clk 0:00:07]}  Kb4 {[%clk 0:00:07]} 58. f6 {[%clk 0:00:07]}  b5 {[%clk 0:00:08]} 59. Rb7 {[%clk 0:00:07]}  Rf3 {[%clk 0:00:08]} 60. Rb8 {[%clk 0:00:06]}  Kb3 {[%clk 0:00:08]} 61. Rb7 {[%clk 0:00:06]}  b4 {[%clk 0:00:08]} 62. Rc7 {[%clk 0:00:06]}  Kc3 {[%clk 0:00:07]} 63. Re7 {[%clk 0:00:05]}  b3 {[%clk 0:00:06]} 64. Kf8 {[%clk 0:00:05]}  b2 {[%clk 0:00:06]} 65. Rb7 {[%clk 0:00:05]}  Kc2 {[%clk 0:00:03]} 66. Rc7 {[%clk 0:00:06]}  Rc3 {[%clk 0:00:04]} 67. Kg7 {[%clk 0:00:05]}  b1=Q {[%clk 0:00:03]} 68. Re7 {[%clk 0:00:05]}  Qg1+ {[%clk 0:00:03]} 69. Kf8 {[%clk 0:00:05]}  Qc5 {[%clk 0:00:02]} 70. Kg7 {[%clk 0:00:04]}  Rg3+ {[%clk 0:00:02]} 71. Kf8 {[%clk 0:00:04]}  Qc8+ {[%clk 0:00:02]} 72. Re8 {[%clk 0:00:04]}  Qxe8+ {[%clk 0:00:03]} 73. Kxe8 {[%clk 0:00:04]}  Be6 {[%clk 0:00:04]} 74. Ke7 {[%clk 0:00:05]}  Rg6 {[%clk 0:00:05]} 75. Kf8 {[%clk 0:00:04]}  Kd3 {[%clk 0:00:06]} 76. Ke7 {[%clk 0:00:04]}  Ke4 {[%clk 0:00:07]} 77. Kf8 {[%clk 0:00:04]}  Kf5 {[%clk 0:00:07]} 78. Ke7 {[%clk 0:00:05]}  Kg5 {[%clk 0:00:07]} 79. Kf8 {[%clk 0:00:06]}  Kxf6 {[%clk 0:00:07]} 80. Ke8 {[%clk 0:00:06]}  Kf5 {[%clk 0:00:08]} 81. Ke7 {[%clk 0:00:06]}  Bc4 {[%clk 0:00:07]} 0-1


[Site "https://www.chess.com"]

[Event "Titled Tuesday Blitz April 26 Late 2022"]
[White "Mickiewicz, Piotr"]
[Black "Balint, Vilmos"]
[WhiteFideId "1114891"]
[BlackFideId "718050"]
[WhiteElo "2266"]
[BlackElo "2059"]
[Result "1-0"]
[Round "09"]
[TimeControl "180+1"]
[Date "2022.04.26"]
[WhiteClock "0:02:09"]
[BlackClock "0:02:37"]

1. Nf3 {[%clk 0:03:00]}  f5 {[%clk 0:02:58]} 2. g3 {[%clk 0:03:01]}  Nf6 {[%clk 0:02:58]} 3. b3 {[%clk 0:03:01]}  g6 {[%clk 0:02:59]} 4. Bb2 {[%clk 0:03:01]}  Bg7 {[%clk 0:02:59]} 5. c4 {[%clk 0:03:00]}  O-O {[%clk 0:03:00]} 6. Bg2 {[%clk 0:02:59]}  d6 {[%clk 0:03:00]} 7. O-O {[%clk 0:02:57]}  e5 {[%clk 0:03:00]} 8. d3 {[%clk 0:02:58]}  Nc6 {[%clk 0:03:00]} 9. Nbd2 {[%clk 0:02:55]}  h6 {[%clk 0:02:56]} 10. c5 {[%clk 0:02:42]}  Kh7 {[%clk 0:02:56]} 11. cxd6 {[%clk 0:02:41]}  cxd6 {[%clk 0:02:57]} 12. Rc1 {[%clk 0:02:35]}  Be6 {[%clk 0:02:57]} 13. a3 {[%clk 0:02:33]}  Rc8 {[%clk 0:02:48]} 14. b4 {[%clk 0:02:31]}  a6 {[%clk 0:02:48]} 15. e4 {[%clk 0:02:16]}  f4 {[%clk 0:02:38]} 16. d4 {[%clk 0:02:12]}  Nh5 {[%clk 0:02:37]} 17. d5 {[%clk 0:02:09]} 1-0


[Site "https://www.chess.com"]

[Event "Titled Tuesday Blitz April 26 Late 2022"]
[White "Mikhailov, Viacheslav"]
[Black "Richter, Nils"]
[WhiteFideId "4187369"]
[BlackFideId "12990809"]
[WhiteElo "2381"]
[BlackElo "2243"]
[Result "1-0"]
[Round "09"]
[TimeControl "180+1"]
[Date "2022.04.26"]
[WhiteClock "0:00:46"]
[BlackClock "0:00:20"]

1. Nf3 {[%clk 0:03:00]}  c6 {[%clk 0:02:58]} 2. g3 {[%clk 0:03:00]}  d5 {[%clk 0:02:59]} 3. Bg2 {[%clk 0:03:00]}  e6 {[%clk 0:02:58]} 4. O-O {[%clk 0:03:01]}  Nf6 {[%clk 0:02:58]} 5. d4 {[%clk 0:03:02]}  Bd6 {[%clk 0:02:57]} 6. c4 {[%clk 0:03:03]}  O-O {[%clk 0:02:57]} 7. Nc3 {[%clk 0:03:04]}  Nbd7 {[%clk 0:02:56]} 8. Qc2 {[%clk 0:03:03]}  Re8 {[%clk 0:02:54]} 9. e4 {[%clk 0:03:04]}  dxe4 {[%clk 0:02:51]} 10. Nxe4 {[%clk 0:03:05]}  Nxe4 {[%clk 0:02:51]} 11. Qxe4 {[%clk 0:03:06]}  Nf6 {[%clk 0:02:51]} 12. Qc2 {[%clk 0:03:05]}  Qc7 {[%clk 0:02:49]} 13. Rd1 {[%clk 0:03:05]}  Bd7 {[%clk 0:02:49]} 14. Bg5 {[%clk 0:02:58]}  c5 {[%clk 0:02:40]} 15. Bxf6 {[%clk 0:02:56]}  gxf6 {[%clk 0:02:40]} 16. d5 {[%clk 0:02:53]}  Bf8 {[%clk 0:02:36]} 17. dxe6 {[%clk 0:02:43]}  fxe6 {[%clk 0:02:35]} 18. Rd2 {[%clk 0:02:34]}  Bc6 {[%clk 0:02:35]} 19. Nh4 {[%clk 0:02:30]}  Bxg2 {[%clk 0:02:31]} 20. Nxg2 {[%clk 0:02:30]}  Rad8 {[%clk 0:02:30]} 21. Rad1 {[%clk 0:02:30]}  Rxd2 {[%clk 0:02:29]} 22. Qxd2 {[%clk 0:02:31]}  f5 {[%clk 0:02:25]} 23. Nf4 {[%clk 0:02:23]}  Bg7 {[%clk 0:02:23]} 24. Qd7 {[%clk 0:02:12]}  Qxd7 {[%clk 0:02:17]} 25. Rxd7 {[%clk 0:02:13]}  Bxb2 {[%clk 0:02:08]} 26. Rxb7 {[%clk 0:02:13]}  Bd4 {[%clk 0:02:04]} 27. Rxa7 {[%clk 0:02:12]}  e5 {[%clk 0:01:58]} 28. Nd5 {[%clk 0:02:12]}  e4 {[%clk 0:01:58]} 29. Ne7+ {[%clk 0:02:08]}  Kf8 {[%clk 0:01:36]} 30. Nxf5 {[%clk 0:02:07]}  Rb8 {[%clk 0:01:25]} 31. Rd7 {[%clk 0:01:53]}  Ke8 {[%clk 0:01:04]} 32. Rd5 {[%clk 0:01:43]}  Rb1+ {[%clk 0:01:02]} 33. Kg2 {[%clk 0:01:43]}  Rd1 {[%clk 0:01:03]} 34. Nd6+ {[%clk 0:01:38]}  Ke7 {[%clk 0:01:01]} 35. Nxe4 {[%clk 0:01:39]}  Rc1 {[%clk 0:00:51]} 36. Nxc5 {[%clk 0:01:31]}  Rxc4 {[%clk 0:00:51]} 37. Nd3 {[%clk 0:01:11]}  Ra4 {[%clk 0:00:48]} 38. Rh5 {[%clk 0:00:57]}  Ra3 {[%clk 0:00:47]} 39. Nb4 {[%clk 0:00:50]}  Ra4 {[%clk 0:00:35]} 40. Nc6+ {[%clk 0:00:49]}  Kf6 {[%clk 0:00:31]} 41. Rh4 {[%clk 0:00:47]}  Bc5 {[%clk 0:00:20]} 42. Rxa4 {[%clk 0:00:46]} 1-0


[Site "https://www.chess.com"]

[Event "Titled Tuesday Blitz April 26 Late 2022"]
[White "Needleman, Alejandro"]
[Black "Karttunen, Mika"]
[WhiteFideId "100730"]
[BlackFideId "502081"]
[WhiteElo "2351"]
[BlackElo "2343"]
[Result "1/2-1/2"]
[Round "09"]
[TimeControl "180+1"]
[Date "2022.04.26"]
[WhiteClock "0:00:16"]
[BlackClock "0:00:06"]

1. e4 {[%clk 0:03:00]}  c6 {[%clk 0:03:00]} 2. d4 {[%clk 0:02:59]}  d5 {[%clk 0:03:00]} 3. Nc3 {[%clk 0:03:00]}  dxe4 {[%clk 0:02:57]} 4. Nxe4 {[%clk 0:03:01]}  Nf6 {[%clk 0:02:57]} 5. Nxf6+ {[%clk 0:03:01]}  gxf6 {[%clk 0:02:57]} 6. Ne2 {[%clk 0:02:56]}  h5 {[%clk 0:02:45]} 7. h4 {[%clk 0:02:51]}  Bg4 {[%clk 0:02:44]} 8. Qd3 {[%clk 0:02:51]}  e5 {[%clk 0:02:30]} 9. Be3 {[%clk 0:02:46]}  Qa5+ {[%clk 0:02:25]} 10. Qd2 {[%clk 0:02:42]}  Qxd2+ {[%clk 0:02:22]} 11. Kxd2 {[%clk 0:02:40]}  Nd7 {[%clk 0:02:19]} 12. f3 {[%clk 0:02:40]}  Be6 {[%clk 0:02:17]} 13. b3 {[%clk 0:02:31]}  O-O-O {[%clk 0:01:53]} 14. Kc3 {[%clk 0:02:25]}  Nb6 {[%clk 0:01:49]} 15. Kb2 {[%clk 0:02:18]}  Nd5 {[%clk 0:01:36]} 16. Bf2 {[%clk 0:02:18]}  Bd6 {[%clk 0:01:22]} 17. a3 {[%clk 0:02:17]}  Rhg8 {[%clk 0:01:14]} 18. c4 {[%clk 0:02:15]}  Ne7 {[%clk 0:01:10]} 19. Rd1 {[%clk 0:02:09]}  Bc5 {[%clk 0:00:48]} 20. b4 {[%clk 0:01:47]}  Bb6 {[%clk 0:00:48]} 21. Kc3 {[%clk 0:01:33]}  Nf5 {[%clk 0:00:47]} 22. Rd2 {[%clk 0:01:24]}  Nd6 {[%clk 0:00:24]} 23. dxe5 {[%clk 0:01:18]}  Nxc4 {[%clk 0:00:14]} 24. Rxd8+ {[%clk 0:01:15]}  Bxd8 {[%clk 0:00:13]} 25. Nf4 {[%clk 0:01:09]}  Nxa3 {[%clk 0:00:13]} 26. Nxe6 {[%clk 0:01:08]}  fxe6 {[%clk 0:00:13]} 27. Bxa7 {[%clk 0:01:02]}  Nb5+ {[%clk 0:00:13]} 28. Bxb5 {[%clk 0:01:01]}  cxb5 {[%clk 0:00:14]} 29. Rg1 {[%clk 0:00:58]}  fxe5 {[%clk 0:00:14]} 30. Bf2 {[%clk 0:00:57]}  Kd7 {[%clk 0:00:14]} 31. g4 {[%clk 0:00:55]}  e4 {[%clk 0:00:13]} 32. gxh5 {[%clk 0:00:53]}  Rxg1 {[%clk 0:00:13]} 33. Bxg1 {[%clk 0:00:53]}  exf3 {[%clk 0:00:12]} 34. h6 {[%clk 0:00:52]}  Bxh4 {[%clk 0:00:11]} 35. Bd4 {[%clk 0:00:48]}  e5 {[%clk 0:00:11]} 36. Be3 {[%clk 0:00:42]}  Bf6 {[%clk 0:00:10]} 37. Kd3 {[%clk 0:00:41]}  Ke6 {[%clk 0:00:11]} 38. Ke4 {[%clk 0:00:40]}  Bh8 {[%clk 0:00:09]} 39. Bf2 {[%clk 0:00:37]}  Bf6 {[%clk 0:00:08]} 40. Be3 {[%clk 0:00:37]}  Bh8 {[%clk 0:00:07]} 41. Bf2 {[%clk 0:00:38]}  Kf6 {[%clk 0:00:07]} 42. Be3 {[%clk 0:00:36]}  Kg6 {[%clk 0:00:07]} 43. Kxf3 {[%clk 0:00:27]}  Kf5 {[%clk 0:00:07]} 44. Bd2 {[%clk 0:00:22]}  e4+ {[%clk 0:00:07]} 45. Ke3 {[%clk 0:00:21]}  Be5 {[%clk 0:00:07]} 46. Be1 {[%clk 0:00:20]}  Bf4+ {[%clk 0:00:06]} 47. Kd4 {[%clk 0:00:19]}  Bxh6 {[%clk 0:00:07]} 48. Kc5 {[%clk 0:00:19]}  Be3+ {[%clk 0:00:05]} 49. Kxb5 {[%clk 0:00:19]}  Kf4 {[%clk 0:00:04]} 50. Kc4 {[%clk 0:00:19]}  Kf3 {[%clk 0:00:05]} 51. Kd5 {[%clk 0:00:20]}  Bg1 {[%clk 0:00:04]} 52. Kd6 {[%clk 0:00:17]}  e3 {[%clk 0:00:03]} 53. Kc7 {[%clk 0:00:17]}  b5 {[%clk 0:00:03]} 54. Kc6 {[%clk 0:00:17]}  Bf2 {[%clk 0:00:03]} 55. Bc3 {[%clk 0:00:16]}  e2 {[%clk 0:00:03]} 56. Kxb5 {[%clk 0:00:16]}  Ke4 {[%clk 0:00:04]} 57. Kc4 {[%clk 0:00:16]}  Ke3 {[%clk 0:00:03]} 58. b5 {[%clk 0:00:15]}  Kf3 {[%clk 0:00:03]} 59. Kd5 {[%clk 0:00:15]}  e1=Q {[%clk 0:00:03]} 60. Bxe1 {[%clk 0:00:14]}  Bxe1 {[%clk 0:00:04]} 61. Kc6 {[%clk 0:00:14]}  Bg3 {[%clk 0:00:04]} 62. b6 {[%clk 0:00:14]}  Bf4 {[%clk 0:00:05]} 63. Kd7 {[%clk 0:00:14]}  Bg3 {[%clk 0:00:05]} 64. Kc8 {[%clk 0:00:15]}  Bf4 {[%clk 0:00:06]} 65. b7 {[%clk 0:00:16]}  Bg3 {[%clk 0:00:06]} 66. b8=Q {[%clk 0:00:16]}  Bxb8 {[%clk 0:00:06]} 1/2-1/2


[Site "https://www.chess.com"]

[Event "Titled Tuesday Blitz April 26 Late 2022"]
[White "Omariev, Maksim"]
[Black "Tregubov, Pavel V."]
[WhiteFideId "4193423"]
[BlackFideId "4115341"]
[WhiteElo "2510"]
[BlackElo "2341"]
[Result "1-0"]
[Round "09"]
[TimeControl "180+1"]
[Date "2022.04.26"]
[WhiteClock "0:00:07"]
[BlackClock "0:00:01"]

1. g4 {[%clk 0:03:00]}  d5 {[%clk 0:02:58]} 2. Bg2 {[%clk 0:03:01]}  c6 {[%clk 0:02:56]} 3. h3 {[%clk 0:02:58]}  e5 {[%clk 0:02:54]} 4. d4 {[%clk 0:02:58]}  Nd7 {[%clk 0:02:44]} 5. dxe5 {[%clk 0:02:47]}  Nxe5 {[%clk 0:02:43]} 6. Bf4 {[%clk 0:02:46]}  Bd6 {[%clk 0:02:38]} 7. Qd4 {[%clk 0:02:32]}  Qe7 {[%clk 0:02:27]} 8. Nf3 {[%clk 0:01:53]}  Nxf3+ {[%clk 0:02:27]} 9. Bxf3 {[%clk 0:01:54]}  Bxf4 {[%clk 0:02:20]} 10. Qxf4 {[%clk 0:01:54]}  Nf6 {[%clk 0:02:20]} 11. Nd2 {[%clk 0:01:37]}  O-O {[%clk 0:02:19]} 12. O-O-O {[%clk 0:01:37]}  a5 {[%clk 0:01:59]} 13. g5 {[%clk 0:01:32]}  Nd7 {[%clk 0:01:52]} 14. h4 {[%clk 0:01:32]}  a4 {[%clk 0:01:47]} 15. a3 {[%clk 0:01:30]}  Qe5 {[%clk 0:01:32]} 16. Qb4 {[%clk 0:01:30]}  b5 {[%clk 0:01:21]} 17. Rhg1 {[%clk 0:00:56]}  c5 {[%clk 0:01:20]} 18. Qg4 {[%clk 0:00:52]}  b4 {[%clk 0:01:17]} 19. Qg3 {[%clk 0:00:28]}  Bb7 {[%clk 0:00:49]} 20. Bg4 {[%clk 0:00:22]}  bxa3 {[%clk 0:00:44]} 21. Qxa3 {[%clk 0:00:16]}  Nb6 {[%clk 0:00:36]} 22. Qxc5 {[%clk 0:00:07]}  a3 {[%clk 0:00:29]} 23. Qxb6 {[%clk 0:00:05]}  a2 {[%clk 0:00:15]} 24. Nb3 {[%clk 0:00:06]}  Ba6 {[%clk 0:00:15]} 25. Na1 {[%clk 0:00:03]}  Bxe2 {[%clk 0:00:09]} 26. Rde1 {[%clk 0:00:02]}  Qf4+ {[%clk 0:00:09]} 27. Qe3 {[%clk 0:00:02]}  Qxe3+ {[%clk 0:00:06]} 28. fxe3 {[%clk 0:00:03]}  Bb5 {[%clk 0:00:06]} 29. c3 {[%clk 0:00:03]}  Rfe8 {[%clk 0:00:06]} 30. Kd2 {[%clk 0:00:03]}  Bc4 {[%clk 0:00:06]} 31. Bf3 {[%clk 0:00:03]}  Rab8 {[%clk 0:00:06]} 32. Kc2 {[%clk 0:00:04]}  Re6 {[%clk 0:00:05]} 33. b3 {[%clk 0:00:04]}  Ba6 {[%clk 0:00:04]} 34. Kb2 {[%clk 0:00:05]}  h6 {[%clk 0:00:02]} 35. Kxa2 {[%clk 0:00:05]}  hxg5 {[%clk 0:00:02]} 36. hxg5 {[%clk 0:00:06]}  Rbe8 {[%clk 0:00:03]} 37. Nc2 {[%clk 0:00:06]}  Bd3 {[%clk 0:00:02]} 38. Kb2 {[%clk 0:00:06]}  Be4 {[%clk 0:00:02]} 39. Bxe4 {[%clk 0:00:07]}  dxe4 {[%clk 0:00:02]} 40. Nd4 {[%clk 0:00:07]}  Ra6 {[%clk 0:00:02]} 41. b4 {[%clk 0:00:07]}  Rd6 {[%clk 0:00:01]} 42. b5 {[%clk 0:00:06]}  Rd5 {[%clk 0:00:01]} 43. c4 {[%clk 0:00:07]}  Rc5 {[%clk 0:00:01]} 44. Kb3 {[%clk 0:00:06]}  Rec8 {[%clk 0:00:01]} 45. Rc1 {[%clk 0:00:07]}  Re5 {[%clk 0:00:01]} 46. b6 {[%clk 0:00:06]}  Rb8 {[%clk 0:00:01]} 47. c5 {[%clk 0:00:07]}  Rd5 {[%clk 0:00:01]} 48. Kb4 {[%clk 0:00:07]} 1-0


[Site "https://www.chess.com"]

[Event "Titled Tuesday Blitz April 26 Late 2022"]
[White "Oro, Luis"]
[Black "Piekarski, Atila Balzer"]
[WhiteFideId "104094"]
[BlackFideId "2119552"]
[WhiteElo "2375"]
[BlackElo "2050"]
[Result "0-1"]
[Round "09"]
[TimeControl "180+1"]
[Date "2022.04.26"]
[WhiteClock "0:00:23"]
[BlackClock "0:00:38"]

1. e4 {[%clk 0:02:56]}  c6 {[%clk 0:02:59]} 2. d4 {[%clk 0:02:55]}  d5 {[%clk 0:03:00]} 3. e5 {[%clk 0:02:54]}  c5 {[%clk 0:02:59]} 4. dxc5 {[%clk 0:02:53]}  e6 {[%clk 0:02:57]} 5. Be3 {[%clk 0:02:46]}  Nh6 {[%clk 0:02:56]} 6. f4 {[%clk 0:02:39]}  Nf5 {[%clk 0:02:10]} 7. Bf2 {[%clk 0:02:37]}  h5 {[%clk 0:02:11]} 8. Bd3 {[%clk 0:02:33]}  Nd7 {[%clk 0:02:08]} 9. Bxf5 {[%clk 0:02:19]}  exf5 {[%clk 0:02:09]} 10. Qxd5 {[%clk 0:02:15]}  Nxc5 {[%clk 0:02:09]} 11. Qxd8+ {[%clk 0:02:14]}  Kxd8 {[%clk 0:02:09]} 12. Nc3 {[%clk 0:02:13]}  Be6 {[%clk 0:02:05]} 13. O-O-O+ {[%clk 0:02:13]}  Kc7 {[%clk 0:02:05]} 14. Nb5+ {[%clk 0:02:13]}  Kc6 {[%clk 0:02:05]} 15. Nd4+ {[%clk 0:02:13]}  Kc7 {[%clk 0:02:04]} 16. Nxe6+ {[%clk 0:02:10]}  fxe6 {[%clk 0:02:05]} 17. Bxc5 {[%clk 0:02:10]}  Bxc5 {[%clk 0:02:05]} 18. g3 {[%clk 0:02:07]}  h4 {[%clk 0:02:04]} 19. Nf3 {[%clk 0:02:05]}  hxg3 {[%clk 0:02:02]} 20. hxg3 {[%clk 0:02:05]}  Rad8 {[%clk 0:01:38]} 21. Ng5 {[%clk 0:01:51]}  Rhe8 {[%clk 0:01:10]} 22. Rh7 {[%clk 0:01:42]}  Be3+ {[%clk 0:01:09]} 23. Rd2 {[%clk 0:01:34]}  Bxd2+ {[%clk 0:01:08]} 24. Kb1 {[%clk 0:01:28]}  Bxf4 {[%clk 0:01:07]} 25. Rxg7+ {[%clk 0:01:25]}  Kb6 {[%clk 0:01:05]} 26. a3 {[%clk 0:01:22]}  Bxg5 {[%clk 0:01:03]} 27. Rxg5 {[%clk 0:01:22]}  Rd5 {[%clk 0:01:02]} 28. c4 {[%clk 0:01:14]}  Rxe5 {[%clk 0:01:01]} 29. Ka2 {[%clk 0:01:14]}  Re4 {[%clk 0:00:59]} 30. Kb3 {[%clk 0:01:08]}  Rd8 {[%clk 0:00:58]} 31. Rg6 {[%clk 0:01:05]}  Rd3+ {[%clk 0:00:58]} 32. Kc2 {[%clk 0:01:04]}  Rdd4 {[%clk 0:00:55]} 33. b3 {[%clk 0:01:03]}  Re2+ {[%clk 0:00:54]} 34. Kc3 {[%clk 0:01:04]}  Rde4 {[%clk 0:00:54]} 35. b4 {[%clk 0:00:55]}  R2e3+ {[%clk 0:00:53]} 36. Kb2 {[%clk 0:00:54]}  Rf3 {[%clk 0:00:52]} 37. Kc2 {[%clk 0:00:43]}  Re2+ {[%clk 0:00:51]} 38. Kd1 {[%clk 0:00:43]}  Rff2 {[%clk 0:00:44]} 39. a4 {[%clk 0:00:29]}  a5 {[%clk 0:00:42]} 40. c5+ {[%clk 0:00:28]}  Kc6 {[%clk 0:00:42]} 41. b5+ {[%clk 0:00:25]}  Kxc5 {[%clk 0:00:42]} 42. Rg7 {[%clk 0:00:24]}  Ra2 {[%clk 0:00:40]} 43. Ke1 {[%clk 0:00:23]}  Rh2 {[%clk 0:00:38]} 44. Rc7+ {[%clk 0:00:23]}  Kb4 {[%clk 0:00:38]} 0-1


[Site "https://www.chess.com"]

[Event "Titled Tuesday Blitz April 26 Late 2022"]
[White "Papp, Petra"]
[Black "Krstulovic, Alex"]
[WhiteFideId "739049"]
[BlackFideId "760056"]
[WhiteElo "2259"]
[BlackElo "2193"]
[Result "0-1"]
[Round "09"]
[TimeControl "180+1"]
[Date "2022.04.26"]
[WhiteClock "0:00:23"]
[BlackClock "0:01:05"]

1. e4 {[%clk 0:02:30]}  c5 {[%clk 0:02:59]} 2. Nf3 {[%clk 0:02:29]}  e6 {[%clk 0:02:59]} 3. d4 {[%clk 0:02:29]}  cxd4 {[%clk 0:03:00]} 4. Nxd4 {[%clk 0:02:29]}  Nf6 {[%clk 0:03:01]} 5. Nc3 {[%clk 0:02:28]}  Nc6 {[%clk 0:03:01]} 6. a3 {[%clk 0:02:21]}  Be7 {[%clk 0:02:57]} 7. Be2 {[%clk 0:02:20]}  d5 {[%clk 0:02:57]} 8. exd5 {[%clk 0:02:19]}  exd5 {[%clk 0:02:58]} 9. O-O {[%clk 0:02:18]}  O-O {[%clk 0:02:50]} 10. Be3 {[%clk 0:02:18]}  Be6 {[%clk 0:02:47]} 11. Bf3 {[%clk 0:02:11]}  Rc8 {[%clk 0:02:43]} 12. g3 {[%clk 0:02:10]}  Bh3 {[%clk 0:02:40]} 13. Re1 {[%clk 0:02:09]}  Ne5 {[%clk 0:02:36]} 14. Bf4 {[%clk 0:02:06]}  Nc4 {[%clk 0:02:30]} 15. b3 {[%clk 0:02:00]}  Nb6 {[%clk 0:02:13]} 16. Qd2 {[%clk 0:01:55]}  Qd7 {[%clk 0:01:44]} 17. Bg2 {[%clk 0:01:24]}  Bxg2 {[%clk 0:01:35]} 18. Kxg2 {[%clk 0:01:23]}  Ne4 {[%clk 0:01:34]} 19. Nxe4 {[%clk 0:01:06]}  dxe4 {[%clk 0:01:35]} 20. Rxe4 {[%clk 0:00:57]}  Bf6 {[%clk 0:01:35]} 21. Rd1 {[%clk 0:00:52]}  Nd5 {[%clk 0:01:29]} 22. Nf3 {[%clk 0:00:43]}  Rfd8 {[%clk 0:01:16]} 23. Kg1 {[%clk 0:00:34]}  Qf5 {[%clk 0:01:08]} 24. Nd4 {[%clk 0:00:23]}  Qxe4 {[%clk 0:01:05]} 0-1


[Site "https://www.chess.com"]